bitfinex/quotes_BTCUSD_20251027
["timestamp","ask_amount","ask_price","bid_price","bid_amount"]
[1761587596918,0.60116943,115590.0,115580.0,0.58792]
[1761587597554,0.59896943,115590.0,115580.0,0.58792]
[1761587598165,0.59896943,115590.0,115580.0,0.67788]
[1761587602206,0.59896943,115590.0,115580.0,0.69396]
[1761587602466,0.17521071,115590.0,115580.0,0.90342031]
[1761587602667,0.17521071,115590.0,115580.0,0.73038]
[1761587602869,0.17741071,115590.0,115580.0,0.70605]
[1761587603221,0.56278715,115590.0,115580.0,0.70605]
[1761587605295,0.17741071,115590.0,115580.0,0.70605]
[1761587606262,0.21359299,115590.0,115580.0,0.70605]
[1761587607540,0.59896943,115590.0,115580.0,0.70605]
[1761587612427,0.59896943,115590.0,115580.0,0.90167031]
[1761587612798,0.59896943,115590.0,115580.0,0.72863]
[1761587613398,0.04646926,115590.0,115580.0,0.90167031]
[1761587613549,0.2194946,115590.0,115580.0,0.90167031]
[1761587613954,0.21139299,115590.0,115580.0,0.90167031]
[1761587614170,0.21849598,115590.0,115580.0,0.90167031]
[1761587614921,0.21849598,115590.0,115580.0,0.90767031]
[1761587616325,0.21849598,115590.0,115580.0,0.73463]
[1761587616758,0.60387242,115590.0,115580.0,0.73463]
[1761587617918,0.60387242,115590.0,115580.0,0.90767031]
[1761587618125,0.60387242,115590.0,115580.0,0.73463]
[1761587618957,0.60387242,115590.0,115580.0,0.90767031]
[1761587620409,0.60387242,115590.0,115580.0,0.73463]
[1761587621414,0.60387575,115590.0,115580.0,0.73463]
[1761587622601,0.60387575,115590.0,115580.0,0.90767031]
[1761587622806,0.60387575,115590.0,115580.0,0.73463]
[1761587623806,0.60387575,115590.0,115580.0,0.90767031]
[1761587625093,0.60387575,115590.0,115580.0,0.73463]
[1761587626606,0.21849931,115590.0,115580.0,0.90767031]
[1761587626808,0.60387575,115590.0,115580.0,0.90767031]
[1761587627481,0.60387575,115590.0,115580.0,0.73463]
[1761587628338,0.60387575,115590.0,115580.0,0.90767031]
[1761587632540,0.60387892,115590.0,115580.0,0.90767031]
[1761587634309,0.60387892,115590.0,115580.0,0.73463]
[1761587634662,0.60387892,115590.0,115580.0,0.90767031]
[1761587635091,0.21850248,115590.0,115580.0,0.90767031]
[1761587635870,0.60379222,115590.0,115580.0,0.90767031]
[1761587637431,0.21850248,115590.0,115580.0,0.90767031]
[1761587637569,0.60379222,115590.0,115580.0,0.90767031]
[1761587639753,0.60379222,115590.0,115580.0,0.90767031]
[1761587643737,0.43076688,115590.0,115580.0,0.90767031]
[1761587643899,0.60379222,115590.0,115580.0,0.90767031]
[1761587644316,0.1823202,115590.0,115580.0,0.90767031]
[1761587644518,0.17421071,115590.0,115580.0,0.90767031]
[1761587645740,0.00118537,115590.0,115580.0,0.28054031]
[1761587646326,0.17421071,115590.0,115580.0,0.28054031]
[1761587646735,0.00118537,115590.0,115580.0,0.28054031]
[1761587646958,0.00118537,115590.0,115580.0,0.43242031]
[1761587647778,0.17421071,115590.0,115580.0,0.43242031]
[1761587647984,0.00118537,115590.0,115580.0,0.43242031]
[1761587649008,0.17421071,115590.0,115580.0,0.43242031]
[1761587650168,0.00118537,115590.0,115580.0,0.43242031]
[1761587651450,0.17421071,115590.0,115580.0,0.43242031]
[1761587652087,0.00118537,115590.0,115580.0,0.43242031]
[1761587652523,0.17421071,115590.0,115580.0,0.43242031]
[1761587652750,0.00118537,115590.0,115580.0,0.43242031]
[1761587653147,0.17421071,115590.0,115580.0,0.90298031]
[1761587653709,0.63616973,115590.0,115580.0,0.90298031]
[1761587654348,0.46314439,115590.0,115580.0,0.90298031]
[1761587654573,0.63616973,115590.0,115580.0,0.90298031]
[1761587655422,0.00118537,115590.0,115580.0,0.90298031]
[1761587655625,0.38647511,115590.0,115580.0,0.90298031]
[1761587656031,0.00118537,115590.0,115580.0,0.90298031]
[1761587656191,0.17421071,115590.0,115580.0,0.90298031]
[1761587656957,0.00118537,115590.0,115580.0,0.90298031]
[1761587658301,0.17421071,115590.0,115580.0,0.90298031]
[1761587659730,0.55950045,115590.0,115580.0,0.90298031]
[1761587664668,0.17421071,115590.0,115580.0,0.90298031]
[1761587664867,0.55950045,115590.0,115580.0,0.90298031]
[1761587665069,0.17421071,115590.0,115580.0,0.90298031]
[1761587667228,0.55950045,115590.0,115580.0,0.90298031]
[1761587668083,0.38647511,115590.0,115580.0,0.90298031]
[1761587668295,0.00118537,115590.0,115580.0,0.90298031]
[1761587670176,0.17421071,115590.0,115580.0,0.90298031]
[1761587672408,0.00118537,115590.0,115580.0,1.28827005]
[1761587673448,0.17421071,115590.0,115580.0,0.90298031]
[1761587673843,0.00118537,115590.0,115580.0,0.90298031]
[1761587674984,0.00118537,115590.0,115580.0,0.9289431]
[1761587676523,0.17421071,115590.0,115580.0,0.9289431]
[1761587676773,0.00118537,115590.0,115580.0,0.9289431]
[1761587682093,0.00118537,115590.0,115580.0,1.31423284]
[1761587682330,0.00118537,115590.0,115580.0,2.12934159]
[1761587682730,0.61835358,115630.0,115620.0,0.17298045]
[1761587682933,0.71627645,115630.0,115620.0,0.39224045]
[1761587683138,0.75245873,115630.0,115620.0,0.43203045]
[1761587683399,0.69759642,115630.0,115620.0,0.43203045]
[1761587683611,0.7337787,115630.0,115620.0,0.43203045]
[1761587683941,0.34848896,115630.0,115620.0,0.43251649]
[1761587684379,0.34167896,115630.0,115620.0,0.43251649]
[1761587684578,0.31572095,115630.0,115620.0,0.43251649]
[1761587685430,0.31672095,115630.0,115620.0,0.43251649]
[1761587685686,0.31672095,115630.0,115620.0,0.25953604]
[1761587685985,0.31572095,115630.0,115620.0,0.25953604]
[1761587686140,0.31572095,115630.0,115620.0,0.43251649]
[1761587686337,0.30761709,115630.0,115620.0,0.43251649]
[1761587686864,0.30761709,115630.0,115620.0,0.60547649]
[1761587688357,0.30843866,115630.0,115620.0,0.60547649]
[1761587690589,0.6937284,115630.0,115620.0,0.60547649]
[1761587691748,0.6937284,115630.0,115620.0,0.81303649]
[1761587694888,0.6937284,115630.0,115620.0,0.64005604]
[1761587695869,0.30843866,115630.0,115620.0,0.64005604]
[1761587696069,0.69347548,115630.0,115620.0,0.64005604]
[1761587696381,0.69347548,115630.0,115620.0,0.72997604]
[1761587696859,0.70146548,115630.0,115620.0,0.69018604]
[1761587697064,0.70146548,115630.0,115620.0,0.67800604]
[1761587697065,0.79927449,115630.0,115620.0,0.67800604]
[1761587697226,0.82523263,115630.0,115620.0,0.09040604]
[1761587697405,0.73541362,115630.0,115620.0,0.67800604]
[1761587698047,0.73641362,115630.0,115620.0,0.67800604]
[1761587698607,0.73641362,115630.0,115620.0,0.09040604]
[1761587698836,1.47552512,115630.0,115620.0,0.09040604]
[1761587699034,1.47552512,115630.0,115620.0,0.67796604]
[1761587699273,1.56534413,115630.0,115620.0,0.67796604]
[1761587699616,1.18030731,115630.0,115620.0,0.67796604]
[1761587701576,1.0904883,115630.0,115620.0,0.67796604]
[1761587703408,0.69746148,115630.0,115620.0,0.69439604]
[1761587703792,0.3132892,115630.0,115620.0,0.73045604]
[1761587703965,0.34947148,115630.0,115620.0,0.73045604]
[1761587704192,0.3413968,115630.0,115620.0,0.73045604]
[1761587704416,0.34947515,115630.0,115620.0,0.73045604]
[1761587704796,0.3413968,115630.0,115620.0,0.73045604]
[1761587704999,0.25157779,115630.0,115620.0,0.73045604]
[1761587705217,0.25157779,115630.0,115620.0,0.90343649]
[1761587705598,0.24557779,115630.0,115620.0,0.90343649]
[1761587706014,0.23996779,115630.0,115620.0,0.90343649]
[1761587706426,0.1997452,115630.0,115620.0,0.90343649]
[1761587709017,0.02677971,115630.0,115620.0,0.90343649]
[1761587709228,0.00082157,115630.0,115620.0,0.90343649]
[1761587709614,0.00082157,115630.0,115620.0,1.31442633]
[1761587710067,0.00082157,115630.0,115620.0,0.92938951]
[1761587710446,0.00082157,115630.0,115620.0,1.31442633]
[1761587710621,0.00082157,115630.0,115620.0,0.92938951]
[1761587715068,0.00082157,115630.0,115620.0,0.34182951]
[1761587715069,0.55882388,115630.0,115620.0,0.34182951]
[1761587715292,0.56691436,115630.0,115620.0,0.92938951]
[1761587715515,0.55882388,115630.0,115620.0,0.92938951]
[1761587715770,0.17378706,115630.0,115620.0,0.92938951]
[1761587717297,0.18187665,115630.0,115620.0,0.92938951]
[1761587718954,0.18187604,115630.0,115620.0,0.92938951]
[1761587720381,0.17378706,115630.0,115620.0,0.92938951]
[1761587730591,0.00082157,115630.0,115620.0,0.92938951]
[1761587734706,0.00082157,115630.0,115620.0,0.90343649]
[1761587736799,0.00082157,115630.0,115620.0,1.28847331]
[1761587741505,0.00082157,115630.0,115620.0,1.29147331]
[1761587750236,0.00082157,115630.0,115620.0,0.90643649]
[1761587750469,0.00082157,115630.0,115620.0,1.29147331]
[1761587757762,0.00082157,115630.0,115620.0,0.90643649]
[1761587758256,0.00082157,115630.0,115620.0,1.29134589]
[1761587760902,0.00082157,115630.0,115620.0,0.90643649]
[1761587761090,0.00082157,115630.0,115620.0,1.29134589]
[1761587761793,0.38573097,115630.0,115620.0,0.75459649]
[1761587762037,0.38573097,115630.0,115620.0,0.90635649]
[1761587762993,0.00082157,115630.0,115620.0,0.90635649]
[1761587763404,0.00082157,115630.0,115620.0,1.29126589]
[1761587763617,0.00082157,115630.0,115620.0,0.90635649]
[1761587763837,0.00082157,115630.0,115620.0,1.29126589]
[1761587765069,0.00082157,115630.0,115620.0,0.90635649]
[1761587770739,0.00082157,115630.0,115620.0,1.29126589]
[1761587772386,0.00082157,115630.0,115620.0,0.90635649]
[1761587772596,0.98777814,115630.0,115620.0,0.12212604]
[1761587772859,0.72745778,115630.0,115620.0,0.52912604]
[1761587773053,0.75341581,115630.0,115620.0,0.68084604]
[1761587773225,0.74542581,115630.0,115620.0,0.68084604]
[1761587773428,0.72675029,115630.0,115620.0,0.67784604]
[1761587773878,0.72975029,115630.0,115620.0,0.67784604]
[1761587774087,0.8275593,115630.0,115620.0,0.67784604]
[1761587774293,0.8275593,115630.0,115620.0,0.69309604]
[1761587774294,0.34484089,115630.0,115620.0,0.69309604]
[1761587774498,0.72975029,115630.0,115620.0,0.67784604]
[1761587774707,0.72975029,115630.0,115620.0,0.70524604]
[1761587774708,0.34484089,115630.0,115620.0,0.70524604]
[1761587774926,0.24703188,115630.0,115620.0,0.72861604]
[1761587775132,0.72975029,115630.0,115620.0,0.52612604]
[1761587775343,0.72975029,115630.0,115620.0,0.67784604]
[1761587775517,0.73774029,115630.0,115620.0,0.67784604]
[1761587775695,0.72975029,115630.0,115620.0,0.67784604]
[1761587775907,0.72975029,115630.0,115620.0,0.69309604]
[1761587776965,0.73774029,115630.0,115620.0,0.67784604]
[1761587777409,0.72975029,115630.0,115620.0,0.67784604]
[1761587779636,0.73774029,115630.0,115620.0,0.67784604]
[1761587780908,0.73774029,115630.0,115620.0,0.58792604]
[1761587787598,0.72975029,115630.0,115620.0,0.58792604]
[1761587789983,0.73774029,115630.0,115620.0,0.58792604]
[1761587791232,0.79992481,115630.0,115620.0,0.58792604]
[1761587791435,0.73774029,115630.0,115620.0,0.58792604]
[1761587794696,0.72975029,115630.0,115620.0,0.60381604]
[1761587794933,0.72975029,115630.0,115620.0,0.58792604]
[1761587795739,0.34484089,115630.0,115620.0,0.60381604]
[1761587795958,0.72975029,115630.0,115620.0,0.60381604]
[1761587798240,0.33685089,115630.0,115620.0,1.02494544]
[1761587798452,0.33685089,115630.0,115620.0,0.64003604]
[1761587799811,0.33685089,115630.0,115620.0,0.81301649]
[1761587800034,0.33685089,115630.0,115620.0,0.64003604]
[1761587802199,0.33685089,115630.0,115620.0,0.81301649]
[1761587802403,0.33685089,115630.0,115620.0,0.64003604]
[1761587803570,0.33685089,115630.0,115620.0,0.81301649]
[1761587805351,0.01192608,115630.0,115620.0,1.19792589]
[1761587805569,0.00382157,115630.0,115620.0,1.58283529]
[1761587806108,0.00382157,115630.0,115620.0,1.19792589]
[1761587806688,0.00082157,115630.0,115620.0,1.19792589]
[1761587807107,0.00082157,115630.0,115620.0,1.20092589]
[1761587811899,0.00082157,115630.0,115620.0,1.29084589]
[1761587812112,0.00082157,115630.0,115620.0,1.67575529]
[1761587812291,0.00082157,115630.0,115620.0,1.29084589]
[1761587813559,0.00082157,115630.0,115620.0,1.67575529]
[1761587819753,0.00082157,115630.0,115620.0,1.29081405]
[1761587820751,0.00082157,115630.0,115620.0,0.90593649]
[1761587822956,0.00082157,115630.0,115620.0,1.29081405]
[1761587824257,0.00082157,115630.0,115620.0,0.90593649]
[1761587824416,0.18177706,115630.0,115620.0,0.88148649]
[1761587824628,0.17378706,115630.0,115620.0,0.90498649]
[1761587825536,0.17378706,115630.0,115620.0,0.73200604]
[1761587825928,0.17378706,115630.0,115620.0,0.72900604]
[1761587827795,0.18177706,115630.0,115620.0,0.72900604]
[1761587828016,0.18177706,115630.0,115620.0,0.70550604]
[1761587828231,0.18987205,115630.0,115620.0,0.70550604]
[1761587828437,0.18987205,115630.0,115620.0,0.87848649]
[1761587828663,0.61093189,115630.0,115620.0,0.11802604]
[1761587828879,0.61892189,115630.0,115620.0,0.67788604]
[1761587829326,0.61093189,115630.0,115620.0,0.67788604]
[1761587829993,0.22605433,115630.0,115620.0,0.69428604]
[1761587831055,0.22905433,115630.0,115620.0,0.69428604]
[1761587831327,0.31887334,115630.0,115620.0,0.09040604]
[1761587831533,0.31887334,115630.0,115620.0,0.67788604]
[1761587832168,0.31887334,115630.0,115620.0,0.69428604]
[1761587837789,0.31887334,115630.0,115620.0,0.67788604]
[1761587839470,0.77216962,115630.0,115620.0,0.29792604]
[1761587839696,0.77216962,115630.0,115620.0,0.67788604]
[1761587839910,0.79812682,115630.0,115620.0,0.67788604]
[1761587840554,0.7376981,115630.0,115620.0,0.67788604]
[1761587844290,0.7376981,115630.0,115620.0,0.09040604]
[1761587844499,0.7376981,115630.0,115620.0,0.67788604]
[1761587847316,0.34483054,115630.0,115620.0,0.69428604]
[1761587847499,0.33684054,115630.0,115620.0,0.72991604]
[1761587848166,0.31088334,115630.0,115620.0,0.72991604]
[1761587848623,0.31887334,115630.0,115620.0,0.72991604]
[1761587848820,0.31887334,115630.0,115620.0,0.63999604]
[1761587849223,0.31887334,115630.0,115620.0,0.61567604]
[1761587853625,0.31088334,115630.0,115620.0,0.63992604]
[1761587854700,0.38222316,115630.0,115620.0,0.63992604]
[1761587855507,0.40817933,115630.0,115620.0,0.63992604]
[1761587856290,0.40817933,115630.0,115620.0,0.61567604]
[1761587860664,0.34482951,115630.0,115620.0,0.61567604]
[1761587862489,0.34482951,115630.0,115620.0,0.63992604]
[1761587877168,0.33683951,115630.0,115620.0,0.81290649]
[1761587878971,0.21083822,115630.0,115620.0,0.81290649]
[1761587881111,0.03787273,115630.0,115620.0,0.81290649]
[1761587881341,0.03787273,115630.0,115620.0,1.19778405]
[1761587881561,0.00382157,115630.0,115620.0,1.19778405]
[1761587881767,0.00382157,115630.0,115620.0,1.58255885]
[1761587882854,0.00082157,115630.0,115620.0,1.58255885]
[1761587884769,0.00082157,115630.0,115620.0,1.60851012]
[1761587885442,1.57e-06,115630.0,115620.0,2.42315531]
[1761587885658,0.03829009,115670.0,115660.0,0.17292062]
[1761587885883,0.03829009,115670.0,115660.0,1.16149298]
[1761587886098,0.03829009,115670.0,115660.0,1.20230298]
[1761587886562,0.03829009,115670.0,115660.0,0.8174768]
[1761587886563,0.0302,115670.0,115660.0,0.8174768]
[1761587886978,0.0302,115670.0,115660.0,0.81796284]
[1761587887407,0.0302,115670.0,115660.0,1.20278902]
[1761587888034,0.0302,115670.0,115660.0,0.81796284]
[1761587888910,0.0302,115670.0,115660.0,0.82096284]
[1761587890724,0.0302,115670.0,115660.0,1.20578902]
[1761587891320,0.03102115,115670.0,115660.0,1.20578902]
[1761587892748,0.03102115,115670.0,115660.0,0.82096284]
[1761587892922,0.03102115,115670.0,115660.0,0.91084284]
[1761587894590,0.20392682,115670.0,115660.0,0.73792222]
[1761587894813,0.20392682,115670.0,115660.0,0.52601666]
[1761587895845,0.20392682,115670.0,115660.0,0.31901666]
[1761587896055,0.20392682,115670.0,115660.0,0.90629666]
[1761587896467,0.21197837,115670.0,115660.0,0.90629666]
[1761587897419,0.21197837,115670.0,115660.0,1.29112284]
[1761587897420,0.0390727,115670.0,115660.0,1.29112284]
[1761587897605,0.21197837,115670.0,115660.0,1.29112284]
[1761587904420,0.25697065,115670.0,115660.0,0.12120604]
[1761587904619,0.25697065,115670.0,115660.0,0.68064604]
[1761587904620,0.64179683,115670.0,115660.0,0.68064604]
[1761587905060,0.64179683,115670.0,115660.0,0.69656604]
[1761587905202,0.64179683,115670.0,115660.0,0.69356604]
[1761587905446,0.64179683,115670.0,115660.0,0.69656604]
[1761587905850,0.64179683,115670.0,115660.0,0.69356604]
[1761587908500,0.64179683,115670.0,115660.0,0.86648666]
[1761587908682,0.25697065,115670.0,115660.0,0.87871666]
[1761587908881,0.24816065,115670.0,115660.0,0.90239666]
[1761587909315,0.24816065,115670.0,115660.0,1.28722284]
[1761587909529,0.21197837,115670.0,115660.0,1.67204902]
[1761587909736,0.21197837,115670.0,115660.0,1.28722284]
[1761587909940,0.0390727,115670.0,115660.0,1.67204902]
[1761587910143,0.03909513,115670.0,115660.0,1.67204902]
[1761587911223,0.03909513,115670.0,115660.0,1.28722284]
[1761587914261,0.03909513,115670.0,115660.0,1.67204902]
[1761587914675,0.03909513,115670.0,115660.0,1.28722284]
[1761587915240,0.0391131,115670.0,115660.0,1.28722284]
[1761587918561,0.0391131,115670.0,115660.0,1.67204902]
[1761587918963,0.0391131,115670.0,115660.0,0.90239666]
[1761587919193,0.0391131,115670.0,115660.0,1.28722284]
[1761587922797,0.0391131,115670.0,115660.0,1.67204902]
[1761587927480,0.0391131,115670.0,115660.0,2.01204902]
[1761587927900,0.0391131,115670.0,115660.0,2.01504902]
[1761587929475,0.0391131,115670.0,115660.0,2.10486803]
[1761587929673,0.0391131,115670.0,115660.0,2.13080947]
[1761587930426,0.03102115,115670.0,115660.0,2.13080947]
[1761587939690,0.03102115,115670.0,115660.0,2.51563565]
[1761587941711,0.03102115,115670.0,115660.0,2.13080947]
[1761587943846,0.03102115,115670.0,115660.0,1.74550399]
[1761587944254,0.03102115,115670.0,115660.0,0.77387711]
[1761587944502,0.03102115,115670.0,115660.0,1.71956255]
[1761587946538,0.03102115,115670.0,115660.0,1.51268255]
[1761587946724,0.03102115,115670.0,115660.0,1.71956255]
[1761587950274,0.03102115,115670.0,115660.0,1.04262354]
[1761587950478,0.03102115,115670.0,115660.0,1.62974354]
[1761587951121,0.03102115,115670.0,115660.0,1.28974354]
[1761587951532,0.03102115,115670.0,115660.0,0.90523666]
[1761587951735,0.03102115,115670.0,115660.0,1.28974354]
[1761587968761,0.03102115,115670.0,115660.0,1.37956255]
[1761587974003,0.03102115,115670.0,115660.0,1.71956255]
[1761587993788,0.03102115,115670.0,115660.0,1.33505567]
[1761587993989,0.03102115,115670.0,115660.0,1.71956255]
[1761587996799,0.03102115,115670.0,115660.0,1.71952255]
[1761587997010,0.03102115,115670.0,115660.0,1.13244255]
[1761587997231,0.03102115,115670.0,115660.0,1.71948255]
[1761588000302,0.03102115,115670.0,115660.0,0.74793567]
[1761588000547,0.05228229,115670.0,115660.0,0.75359666]
[1761588000722,0.22154682,115670.0,115660.0,0.29443666]
[1761588000949,0.22154682,115670.0,115660.0,0.71399666]
[1761588001385,0.22154682,115670.0,115660.0,0.70176666]
[1761588001590,0.22154682,115670.0,115660.0,0.85332666]
[1761588001803,0.03983115,115670.0,115660.0,0.90628666]
[1761588002035,0.03102115,115670.0,115660.0,1.29079354]
[1761588002868,0.03102115,115670.0,115660.0,1.28779354]
[1761588003900,0.03102115,115670.0,115660.0,1.67242616]
[1761588004761,0.03102115,115670.0,115660.0,1.67442616]
[1761588006314,0.03102115,115670.0,115660.0,0.90528666]
[1761588006555,0.03102115,115670.0,115660.0,1.67442616]
[1761588009406,0.03102115,115670.0,115660.0,1.26422616]
[1761588010889,0.03102115,115670.0,115660.0,1.17434616]
[1761588011461,0.03102115,115670.0,115660.0,1.17438616]
[1761588011683,0.03102115,115670.0,115660.0,0.78981641]
[1761588012306,0.03102115,115670.0,115660.0,0.63821641]
[1761588012520,0.03102115,115670.0,115660.0,0.78981641]
[1761588012724,0.03102115,115670.0,115660.0,1.17438616]
[1761588013178,0.03102115,115670.0,115660.0,1.55462616]
[1761588019171,0.03983115,115670.0,115660.0,0.78548666]
[1761588019382,0.03102115,115670.0,115660.0,1.55289616]
[1761588021167,0.03102115,115670.0,115660.0,0.17492062]
[1761588021168,0.24316002,115670.0,115660.0,0.17492062]
[1761588021436,0.22154682,115670.0,115660.0,0.76204062]
[1761588021649,0.22154682,115670.0,115660.0,0.58912]
[1761588022938,0.22154682,115670.0,115660.0,0.58712]
[1761588023171,0.22154682,115670.0,115650.0,0.1018]
[1761588023172,0.17292062,115660.0,115650.0,0.1018]
[1761588023385,0.17292062,115660.0,115650.0,0.86234167]
[1761588023595,0.18173062,115660.0,115650.0,0.87774167]
[1761588023808,0.18173062,115660.0,115650.0,1.26231142]
[1761588024036,0.18173062,115660.0,115650.0,0.0903663]
[1761588024037,1.1021951,115660.0,115650.0,0.0903663]
[1761588024251,1.1021951,115660.0,115650.0,0.6774863]
[1761588024252,1.11028505,115660.0,115650.0,0.6774863]
[1761588024476,0.75166558,115660.0,115650.0,0.6774863]
[1761588024696,0.75166558,115660.0,115650.0,0.6794863]
[1761588025801,0.75166558,115660.0,115650.0,0.6774863]
[1761588026267,0.75466558,115660.0,115650.0,0.6774863]
[1761588026480,0.37009583,115660.0,115650.0,0.6774863]
[1761588026714,0.75466558,115660.0,115650.0,0.6774863]
[1761588027443,0.37009583,115660.0,115650.0,0.6774863]
[1761588027650,0.75466558,115660.0,115650.0,0.6774863]
[1761588027858,0.37009583,115660.0,115650.0,0.6774863]
[1761588028066,0.75466558,115660.0,115650.0,0.6774863]
[1761588028992,0.7552815,115660.0,115650.0,0.6774863]
[1761588029878,1.13985125,115660.0,115650.0,0.6775663]
[1761588031016,1.10366897,115660.0,115650.0,0.6775663]
[1761588031232,1.13985125,115660.0,115650.0,0.6775663]
[1761588033047,1.47985125,115660.0,115650.0,0.6775663]
[1761588033274,1.49844494,115660.0,115650.0,0.6775663]
[1761588033707,2.89231699,115660.0,115650.0,0.4360063]
[1761588033925,2.90038518,115660.0,115650.0,0.5877263]
[1761588034666,2.8642029,115660.0,115650.0,0.5877263]
[1761588034890,2.90038518,115660.0,115650.0,0.5877263]
[1761588035111,0.17299541,115610.0,115600.0,1.11075051]
[1761588035347,0.1911009,115610.0,115600.0,1.58918066]
[1761588035563,0.1822909,115610.0,115600.0,1.98907013]
[1761588035786,0.1911009,115610.0,115600.0,1.40752]
[1761588036006,0.1999109,115610.0,115600.0,1.37992]
[1761588036229,0.1999109,115610.0,115600.0,1.38392]
[1761588036448,0.1822909,115610.0,115600.0,1.82005975]
[1761588036942,0.1911009,115610.0,115600.0,1.76848975]
[1761588037185,0.1911009,115610.0,115600.0,1.38392]
[1761588037621,0.1999109,115610.0,115600.0,1.38392]
[1761588037851,0.58448065,115610.0,115600.0,1.38392]
[1761588038039,0.57567065,115610.0,115600.0,1.38392]
[1761588038283,0.1911009,115610.0,115600.0,1.38392]
[1761588038576,0.26944291,115610.0,115600.0,1.38392]
[1761588038797,0.1911009,115610.0,115600.0,1.38392]
[1761588039456,0.1991519,115610.0,115600.0,1.38392]
[1761588040316,0.1991519,115610.0,115600.0,1.57231038]
[1761588040757,0.1991519,115610.0,115600.0,1.3993]
[1761588042552,0.25557129,115610.0,115600.0,1.3993]
[1761588043195,0.25557129,115610.0,115600.0,1.5914]
[1761588043630,0.1991519,115610.0,115600.0,1.5914]
[1761588044042,0.1991519,115610.0,115600.0,1.76441038]
[1761588044251,0.1991519,115610.0,115600.0,1.77979038]
[1761588044711,0.1991519,115610.0,115600.0,1.79201038]
[1761588046444,0.1991519,115610.0,115600.0,1.619]
[1761588046903,0.1991519,115610.0,115600.0,1.5914]
[1761588047130,0.67167875,115610.0,115600.0,1.5914]
[1761588047548,0.1991519,115610.0,115600.0,1.5914]
[1761588047769,0.58372165,115610.0,115600.0,1.76441038]
[1761588048195,0.58372165,115610.0,115600.0,1.5914]
[1761588048859,0.58372165,115610.0,115600.0,1.77979038]
[1761588049062,0.58372165,115610.0,115600.0,1.60678]
[1761588049270,0.58372165,115610.0,115600.0,1.77979038]
[1761588049450,0.1991519,115610.0,115600.0,1.77979038]
[1761588049666,0.1991519,115610.0,115600.0,1.79201038]
[1761588049893,0.1815319,115610.0,115600.0,2.20055013]
[1761588050807,0.1815319,115610.0,115600.0,1.81598038]
[1761588052291,0.1815319,115610.0,115600.0,2.58511988]
[1761588052292,0.00853649,115610.0,115600.0,2.58511988]
[1761588053563,0.00853649,115610.0,115600.0,1.81598038]
[1761588053789,0.00853649,115610.0,115600.0,2.20055013]
[1761588056928,0.00853649,115610.0,115600.0,1.81598038]
[1761588057179,0.00853649,115610.0,115600.0,2.20055013]
[1761588059825,0.00853649,115610.0,115600.0,1.81598038]
[1761588060046,0.01734649,115610.0,115600.0,1.79201038]
[1761588060237,0.01734649,115610.0,115600.0,2.17658013]
[1761588060564,0.00853649,115610.0,115600.0,2.20068013]
[1761588060929,0.1815319,115610.0,115600.0,2.20068013]
[1761588061142,0.1903419,115610.0,115600.0,2.17658013]
[1761588061374,0.1903419,115610.0,115600.0,1.79201038]
[1761588061578,0.1903419,115610.0,115600.0,2.17658013]
[1761588061974,0.1903419,115610.0,115600.0,2.20068013]
[1761588062192,0.1903419,115610.0,115600.0,1.619]
[1761588062395,0.65058235,115610.0,115600.0,1.5914]
[1761588062603,0.65058235,115610.0,115600.0,1.60767]
[1761588062794,0.66923608,115610.0,115600.0,1.60767]
[1761588063228,0.59356538,115610.0,115600.0,1.5914]
[1761588063441,0.60237538,115610.0,115600.0,1.5914]
[1761588063658,0.21780563,115610.0,115600.0,1.5914]
[1761588063867,0.60242331,115610.0,115600.0,1.5914]
[1761588064315,0.59361331,115610.0,115600.0,1.5914]
[1761588064527,0.20904356,115610.0,115600.0,1.64343]
[1761588065226,0.20904356,115610.0,115600.0,1.61933]
[1761588066495,0.20023356,115610.0,115600.0,1.64319]
[1761588066704,0.20904356,115610.0,115600.0,1.61933]
[1761588066914,0.23101642,115610.0,115600.0,1.61933]
[1761588067810,0.23982642,115610.0,115600.0,1.5914]
[1761588068224,0.23101642,115610.0,115600.0,1.5914]
[1761588068650,0.20904356,115610.0,115600.0,1.5914]
[1761588068866,0.20023356,115610.0,115600.0,1.81574038]
[1761588069504,0.20023356,115610.0,115600.0,1.64273]
[1761588069719,0.20023356,115610.0,115600.0,1.81574038]
[1761588070213,0.20904356,115610.0,115600.0,1.64880038]
[1761588070428,0.79277495,115610.0,115600.0,1.2322]
[1761588070663,0.80059616,115610.0,115600.0,1.2181442]
[1761588070896,0.8470645,115610.0,115600.0,1.2181442]
[1761588071109,0.8470645,115610.0,115600.0,1.2141442]
[1761588071333,0.80059616,115610.0,115600.0,1.3659042]
[1761588071546,0.80659616,115610.0,115600.0,1.2141442]
[1761588071766,0.80659616,115610.0,115600.0,1.3659042]
[1761588071981,1.21026303,115610.0,115600.0,0.9859442]
[1761588072194,1.17915621,115610.0,115600.0,1.3661442]
[1761588072410,1.21023987,115610.0,115600.0,1.3661442]
[1761588073342,1.16970842,115610.0,115600.0,1.3661442]
[1761588074400,0.72193851,115610.0,115600.0,1.3661442]
[1761588074601,1.10704155,115610.0,115600.0,1.3661442]
[1761588075247,1.1330078,115610.0,115600.0,1.3661442]
[1761588076303,1.15629089,115610.0,115600.0,1.3661442]
[1761588076566,1.2461099,115610.0,115600.0,1.3661442]
[1761588077552,1.2461099,115610.0,115600.0,1.2142242]
[1761588077754,1.2461099,115610.0,115600.0,1.3661442]
[1761588078038,1.2461099,115610.0,115600.0,1.2142242]
[1761588078249,1.5210919,115610.0,115600.0,1.2142242]
[1761588078453,1.52397196,115610.0,115600.0,0.90106654]
[1761588078677,1.53724621,115610.0,115600.0,0.90106654]
[1761588079501,1.50616255,115610.0,115600.0,0.90106654]
[1761588079929,1.46998027,115610.0,115600.0,0.90106654]
[1761588080127,1.50616255,115610.0,115600.0,0.90106654]
[1761588081398,1.48999939,115610.0,115600.0,0.90106654]
[1761588081814,1.31807239,115610.0,115600.0,0.90106654]
[1761588082012,1.19174315,115610.0,115600.0,0.90106654]
[1761588083320,1.15556087,115610.0,115600.0,0.90106654]
[1761588083536,1.19174315,115610.0,115600.0,0.90106654]
[1761588087046,1.1657769,115610.0,115600.0,0.90106654]
[1761588092820,0.68204485,115610.0,115600.0,0.90106654]
[1761588093030,0.66339112,115610.0,115600.0,0.90106654]
[1761588093237,1.04849416,115610.0,115600.0,0.90106654]
[1761588093453,0.66339112,115610.0,115600.0,0.90106654]
[1761588093665,0.32339112,115610.0,115600.0,0.91764654]
[1761588093870,0.31529219,115610.0,115600.0,0.91764654]
[1761588094098,0.30648219,115610.0,115600.0,0.95407654]
[1761588094316,0.30548219,115610.0,115600.0,0.95407654]
[1761588094738,0.00648549,115610.0,115600.0,1.12708692]
[1761588095606,0.00048549,115610.0,115600.0,1.12708692]
[1761588095845,0.00048549,115610.0,115600.0,1.51218996]
[1761588096083,0.00048549,115610.0,115600.0,1.12708692]
[1761588097209,0.00048549,115610.0,115600.0,1.13208692]
[1761588097419,0.00048549,115610.0,115600.0,1.51718996]
[1761588099284,0.00048549,115610.0,115600.0,1.13208692]
[1761588102947,0.00048549,115610.0,115600.0,1.51718996]
[1761588107041,0.00048549,115610.0,115600.0,1.13208692]